bitfinex/quotes_ETHUSD_20250909
["timestamp","ask_amount","ask_price","bid_price","bid_amount"]
[1757411333083,63.69034395,4355.2,4355.1,8.624]
[1757411334452,64.92034395,4355.2,4355.1,8.624]
[1757411336252,66.15034395,4355.2,4355.1,10.92015852]
[1757411336767,66.15034395,4355.2,4355.1,8.624]
[1757411337983,67.37954395,4355.2,4355.1,8.624]
[1757411338382,67.37954395,4355.2,4355.1,10.92015852]
[1757411339389,65.48964395,4355.2,4355.1,22.52252052]
[1757411339568,65.48964395,4355.2,4355.1,22.52102052]
[1757411339955,65.94464395,4355.2,4355.1,10.92015852]
[1757411340357,65.48964395,4355.2,4355.1,10.92015852]
[1757411340570,65.48964395,4355.2,4355.1,11.03455852]
[1757411340864,65.48964395,4355.2,4355.1,11.03605852]
[1757411341389,65.48964395,4355.2,4355.1,23.32546848]
[1757411341888,66.71964395,4355.2,4355.1,24.11746848]
[1757411343584,67.94964395,4355.2,4355.1,24.11746848]
[1757411345410,69.17964395,4355.2,4355.1,24.11746848]
[1757411346787,70.40964395,4355.2,4355.1,24.11746848]
[1757411347112,70.40964395,4355.2,4355.1,12.51660648]
[1757411347327,70.40964395,4355.2,4355.1,24.11746848]
[1757411349193,71.63964395,4355.2,4355.1,24.11746848]
[1757411350611,72.86964395,4355.2,4355.1,24.11596848]
[1757411351693,73.33584395,4355.2,4355.1,24.11596848]
[1757411351895,74.56584395,4355.2,4355.1,24.11596848]
[1757411352302,74.56584395,4355.2,4355.1,12.51510648]
[1757411352526,74.56584395,4355.2,4355.1,24.11596848]
[1757411353484,74.56584395,4355.2,4355.1,12.51510648]
[1757411353680,75.32964395,4355.2,4355.1,25.76630312]
[1757411354812,75.32964395,4355.2,4355.1,24.11596848]
[1757411355123,77.02584395,4355.2,4355.1,24.10996848]
[1757411355429,79.44614395,4355.2,4355.1,24.10996848]
[1757411356624,80.67614395,4355.2,4355.1,24.10996848]
[1757411358234,81.90614395,4355.2,4355.1,24.10996848]
[1757411358638,81.73494395,4355.2,4355.1,24.10996848]
[1757411358998,82.20114395,4355.2,4355.1,24.10996848]
[1757411361017,82.20114395,4355.2,4355.1,24.10796848]
[1757411361613,82.20114395,4355.2,4355.1,12.50710648]
[1757411361817,82.20114395,4355.2,4355.1,24.10796848]
[1757411362147,84.43632838,4355.2,4355.1,8.616]
[1757411362316,83.43114395,4355.2,4355.1,8.619]
[1757411362923,83.43114395,4355.2,4355.1,4.803]
[1757411363140,83.43114395,4355.2,4355.1,8.619]
[1757411363627,84.66114395,4355.2,4355.1,8.619]
[1757411364229,84.66034395,4355.2,4355.1,8.619]
[1757411365472,85.89034395,4355.2,4355.1,8.619]
[1757411366736,87.12034395,4355.2,4355.1,8.619]
[1757411368190,88.35034395,4355.2,4355.1,8.619]
[1757411369577,89.58034395,4355.2,4355.1,8.619]
[1757411369779,89.58034395,4355.2,4355.1,4.803]
[1757411369973,89.58034395,4355.2,4355.1,8.617]
[1757411370175,91.84825192,4355.2,4355.1,5.617]
[1757411370557,91.84825192,4355.2,4355.1,1.803]
[1757411370753,91.84825192,4355.2,4355.1,5.617]
[1757411371003,79.45874337,4355.2,4355.1,23.31082052]
[1757411371331,76.59453537,4355.2,4355.1,19.88493961]
[1757411371442,76.59453537,4355.2,4355.1,20.56909482]
[1757411371645,79.59183537,4355.2,4355.1,23.22637573]
[1757411371849,79.59183537,4355.2,4355.1,8.645]
[1757411372144,79.59183537,4355.2,4355.1,10.94115852]
[1757411372145,81.85974334,4355.2,4355.1,10.94115852]
[1757411372385,80.82183537,4355.2,4355.1,10.94115852]
[1757411373143,80.82183537,4355.2,4355.1,8.645]
[1757411373564,80.82183537,4355.2,4355.1,10.94115852]
[1757411373765,82.05183537,4355.2,4355.1,10.94115852]
[1757411374483,82.05183537,4355.2,4355.1,7.09915852]
[1757411374780,82.05183537,4355.2,4355.1,10.94115852]
[1757411375186,83.28183537,4355.2,4355.1,10.94115852]
[1757411375788,83.28183537,4355.2,4355.1,8.645]
[1757411376804,84.51183537,4355.2,4355.1,10.94115852]
[1757411377784,84.51183537,4355.2,4355.1,8.645]
[1757411378666,85.74183537,4355.2,4355.1,8.645]
[1757411379613,85.74183537,4355.2,4355.1,4.803]
[1757411379792,85.74183537,4355.2,4355.1,8.643]
[1757411380321,86.97183537,4355.2,4355.1,8.642]
[1757411380514,86.97183537,4355.2,4355.1,4.803]
[1757411380700,86.97183537,4355.2,4355.1,8.642]
[1757411381682,88.20183537,4355.2,4355.1,8.642]
[1757411382419,88.20183537,4355.2,4355.1,9.33061434]
[1757411383611,89.43183537,4355.2,4355.1,9.33061434]
[1757411384722,89.43283537,4355.2,4355.1,9.33061434]
[1757411385599,90.66283537,4355.2,4355.1,9.32861434]
[1757411387214,90.23033537,4355.2,4355.1,9.32861434]
[1757411387414,90.66283537,4355.2,4355.1,9.32861434]
[1757411388016,91.89283537,4355.2,4355.1,9.32861434]
[1757411389923,93.12283537,4355.2,4355.1,9.32861434]
[1757411390455,93.12203537,4355.2,4355.1,9.32861434]
[1757411391644,94.35203537,4355.2,4355.1,9.32861434]
[1757411392957,95.58203537,4355.2,4355.1,9.32861434]
[1757411393419,95.58203537,4355.2,4355.1,5.49161434]
[1757411393624,95.58203537,4355.2,4355.1,9.32561434]
[1757411393625,97.84994334,4355.2,4355.1,9.32561434]
[1757411394037,97.84994334,4355.2,4355.1,3.73061434]
[1757411394241,97.84994334,4355.2,4355.1,0.73061434]
[1757411394437,101.37604914,4355.2,4355.1,0.73061434]
[1757411395055,101.37604914,4355.2,4355.1,0.042]
[1757411395977,100.30994334,4355.2,4355.1,0.042]
[1757411396380,98.04203537,4355.2,4355.1,0.042]
[1757411398444,95.34723537,4355.2,4355.1,0.042]
[1757411398885,99.27203537,4355.2,4355.1,0.73063646]
[1757411399878,99.27203537,4355.2,4355.1,0.042]
[1757411400572,100.50203537,4355.2,4355.1,0.042]
[1757411401684,101.99126251,4355.2,4355.1,0.042]
[1757411401878,103.22126251,4355.2,4355.1,0.042]
[1757411403714,104.45126251,4355.2,4355.1,0.042]
[1757411403914,108.28526251,4355.2,4355.1,0.042]
[1757411405080,109.51526251,4355.2,4355.1,0.042]
[1757411405283,111.81136831,4355.2,4355.1,0.042]
[1757411406740,109.51526251,4355.2,4355.1,0.042]
[1757411407412,110.74526251,4355.2,4355.1,0.042]
[1757411409930,111.97526251,4355.2,4355.1,0.042]
[1757411410826,111.24496251,4355.2,4355.1,0.042]
[1757411411039,110.50483537,4355.2,4355.1,0.042]
[1757411411557,111.73483537,4355.2,4355.1,0.042]
[1757411412826,109.13083537,4355.2,4355.1,0.042]
[1757411414160,110.36083537,4355.2,4355.1,0.042]
[1757411414958,114.19183537,4355.2,4355.1,0.042]
[1757411415656,117.68974334,4355.2,4355.1,0.042]
[1757411416531,117.68894334,4355.2,4355.1,0.042]
[1757411417274,113.85794334,4355.2,4355.1,0.042]
[1757411417474,117.68694334,4355.2,4355.1,0.042]
[1757411417978,118.46644334,4355.2,4355.1,0.042]
[1757411418289,121.21304914,4355.2,4355.1,0.042]
[1757411418495,118.91694334,4355.2,4355.1,0.042]
[1757411418839,121.21304914,4355.2,4355.1,0.042]
[1757411419040,120.14694334,4355.2,4355.1,0.042]
[1757411419477,122.44304914,4355.2,4355.1,0.042]
[1757411420373,123.67304914,4355.2,4355.1,0.042]
[1757411421077,121.37694334,4355.2,4355.1,0.042]
[1757411421883,122.60694334,4355.2,4355.1,0.042]
[1757411422181,124.90304914,4355.2,4355.1,0.042]
[1757411422380,122.60694334,4355.2,4355.1,0.042]
[1757411422579,120.33903537,4355.2,4355.1,0.042]
[1757411423575,122.63514117,4355.2,4355.1,0.042]
[1757411423775,123.86514117,4355.2,4355.1,0.042]
[1757411424192,121.56903537,4355.2,4355.1,0.042]
[1757411425103,122.79903537,4355.2,4355.1,0.042]
[1757411426209,127.36304914,4355.2,4355.1,0.042]
[1757411426583,128.59304914,4355.2,4355.1,0.042]
[1757411428481,128.80795758,4355.2,4355.1,0.042]
[1757411429091,130.03795758,4355.2,4355.1,0.042]
[1757411432299,131.26795758,4355.2,4355.1,0.042]
[1757411432912,131.26795758,4355.2,4355.1,0.032]
[1757411433288,2.29621125,4355.0,4354.8,0.025]
[1757411433494,10.14235178,4354.9,4354.8,0.025]
[1757411433725,12.82035178,4354.9,4354.8,0.025]
[1757411433879,13.26195178,4354.9,4354.8,0.025]
[1757411434078,15.55821575,4354.9,4354.8,0.025]
[1757411436112,15.34330731,4354.9,4354.8,0.025]
[1757411438418,7.65753537,4354.9,4354.8,0.0265]
[1757411441652,3.83253537,4354.9,4354.8,0.0265]
[1757411442718,3.83173537,4354.9,4354.8,0.025]
[1757411443143,6.63833537,4354.9,4354.8,0.025]
[1757411443728,4.27333537,4354.9,4354.8,0.025]
[1757411443914,3.83173537,4354.9,4354.8,0.025]
[1757411444453,3.83173537,4354.9,4354.8,0.0265]
[1757411445157,3.83173537,4354.9,4354.8,0.025]
[1757411446878,3.83173537,4354.9,4354.8,0.0265]
[1757411447237,3.83173537,4354.9,4354.8,0.025]
[1757411450454,6.95133537,4354.9,4354.8,0.025]
[1757411452175,6.63833537,4354.9,4354.8,0.027]
[1757411452339,6.63933537,4354.9,4354.8,0.027]
[1757411452543,3.83273537,4354.9,4354.8,0.027]
[1757411455413,4.27433537,4354.9,4354.8,0.027]
[1757411460469,3.83273537,4354.9,4354.8,0.027]
[1757411462416,3.83273537,4354.9,4354.8,0.0285]
[1757411464195,3.83273537,4354.9,4354.8,0.027]
[1757411464418,4.30163537,4354.9,4354.8,0.027]
[1757411465193,6.69913537,4354.9,4354.8,0.027]
[1757411465892,3.83273537,4354.9,4354.8,0.027]
[1757411466393,3.83273537,4354.9,4354.8,2.3248167]
[1757411466594,3.83273537,4354.9,4354.8,0.0285]
[1757411467214,3.83273537,4354.9,4354.8,2.3248167]
[1757411467616,3.83273537,4354.9,4354.8,0.0285]
[1757411469095,3.83193537,4354.9,4354.8,0.0285]
[1757411469615,3.83193537,4354.9,4354.8,0.027]
[1757411475138,3.83193537,4354.9,4354.8,0.0285]
[1757411477564,3.83193537,4354.9,4354.8,2.3248167]
[1757411478341,3.83193537,4354.9,4354.8,0.0285]
[1757411478874,3.83193537,4354.9,4354.8,0.027]
[1757411479592,3.83193537,4354.9,4354.8,2.3233167]
[1757411481160,4.30083537,4354.9,4354.8,2.3233167]
[1757411481900,3.83193537,4354.9,4354.8,2.3233167]
[1757411482196,3.83193537,4354.9,4354.8,2.3248167]
[1757411482341,3.83193537,4354.9,4354.8,2.4392167]
[1757411483188,3.83193537,4354.9,4354.8,9.2542167]
[1757411488395,3.83193537,4354.9,4354.8,9.2506288]
[1757411492309,4.14283537,4354.9,4354.8,9.2491288]
[1757411492633,3.83093537,4354.8,4354.6,0.002]
[1757411492794,9.94130398,4354.8,4354.1,0.04]
[1757411492975,6.70703537,4354.7,4354.2,3.815]
[1757411493175,0.3109,4354.2,4354.1,3.855]
[1757411493576,7.01793537,4354.2,4354.1,3.855]
[1757411495073,7.01713537,4354.2,4354.1,3.855]
[1757411504450,3.90533537,4354.1,4353.9,4.06078421]
[1757411504758,3.75093537,4354.0,4353.9,7.06078421]
[1757411504938,4.06183537,4354.0,4353.9,7.06078421]
[1757411505242,6.93793537,4354.0,4353.9,7.06078421]
[1757411505758,3.75093537,4354.0,4353.9,10.87478421]
[1757411506053,3.75093537,4354.0,4353.9,10.87758421]
[1757411508056,3.75093537,4354.0,4353.9,22.62354621]
[1757411508265,3.75093537,4354.0,4353.9,22.62524621]
[1757411510240,3.75093537,4354.0,4353.9,22.59454621]
[1757411511466,3.75093537,4354.0,4353.9,22.59284621]
[1757411512773,3.75093537,4354.0,4353.9,23.28154275]
[1757411514990,3.75093537,4354.0,4353.9,24.07354275]
[1757411519287,3.75093537,4354.0,4353.9,24.07074275]
[1757411520092,3.75093537,4354.0,4353.9,12.46988075]
[1757411520385,3.75093537,4354.0,4353.9,24.07074275]
[1757411520607,3.75093537,4354.0,4353.9,24.07354275]
[1757411521215,3.75013537,4354.0,4353.9,24.07354275]
[1757411522287,6.75253537,4354.0,4353.9,23.27874275]
[1757411526736,6.46553537,4354.0,4353.9,23.27874275]
[1757411528638,6.75253537,4354.0,4353.9,23.27874275]
[1757411531323,6.82693537,4354.0,4353.9,23.27874275]
[1757411531631,6.82693537,4354.0,4353.9,7.87479138]
[1757411531840,7.50972891,4354.0,4353.9,10.87479138]
[1757411532005,6.82693537,4354.0,4353.9,10.87479138]
[1757411534907,0.74813537,4353.9,4353.8,0.027]
[1757411535066,0.74813537,4353.9,4353.8,3.841]
[1757411535268,1.03513537,4353.9,4353.8,3.841]
[1757411535581,3.75053537,4353.9,4353.8,3.841]
[1757411536480,4.13312891,4353.9,4353.8,3.841]
[1757411540088,0.923,4353.8,4353.7,2.29688778]
[1757411540256,1.3548,4353.8,4353.7,2.29688778]
[1757411540456,3.9254,4353.8,4353.7,2.29688778]
[1757411541204,3.9254,4353.8,4353.7,9.11088778]
[1757411541414,0.923,4353.8,4353.7,9.11368778]
[1757411541578,0.923,4353.8,4353.7,9.11088778]
[1757411541772,1.3548,4353.8,4353.7,9.11088778]
[1757411542200,3.9254,4353.8,4353.7,9.11088778]
[1757411544107,0.923,4353.8,4353.7,9.11088778]
[1757411544311,1.3548,4353.8,4353.7,9.11088778]
[1757411545215,3.6384,4353.8,4353.7,9.11088778]
[1757411545923,2.7154,4353.8,4353.7,6.814]
[1757411546084,2.7154,4353.8,4353.7,9.11088778]
[1757411546290,3.0024,4353.8,4353.7,9.11089689]
[1757411547402,3.0016,4353.8,4353.7,9.11089689]
[1757411548502,3.0016,4353.8,4353.7,6.814]
[1757411548704,3.0016,4353.8,4353.7,9.11089689]
[1757411549328,0.74813537,4353.9,4353.8,5.29684413]
[1757411549823,1.17993537,4353.9,4353.8,5.29684413]
[1757411550825,3.46353537,4353.9,4353.8,5.29684413]
[1757411551005,3.75053537,4353.9,4353.8,5.29684413]
[1757411552013,3.75053537,4353.9,4353.8,5.26684413]
[1757411555936,3.75053537,4353.9,4353.8,2.26684413]
[1757411556633,0.74813537,4353.9,4353.8,2.26684413]
[1757411556834,1.18693537,4353.9,4353.8,2.26684413]
[1757411557723,1.18693537,4353.9,4353.8,5.26684413]
[1757411562712,3.67053537,4353.9,4353.8,5.26684413]
[1757411565715,3.2199,4353.9,4353.8,5.26684413]
[1757411566344,3.2199,4353.9,4353.8,5.26884413]
[1757411567248,2.9234,4353.9,4353.8,5.26884413]
[1757411572676,3.2209,4353.9,4353.8,5.26884413]
[1757411573062,3.2209,4353.9,4353.8,9.08284413]
[1757411573464,3.2201,4353.9,4353.8,9.08284413]
[1757411577034,3.2201,4353.9,4353.8,3.002]
[1757411577161,3.56109,4353.9,4353.8,9.11284413]
[1757411579211,3.56109,4353.9,4353.8,6.816]
[1757411579564,3.56109,4353.9,4353.8,9.11284413]
[1757411580902,3.2201,4353.9,4353.8,9.11284413]
[1757411582539,3.2201,4353.9,4353.8,3.002]
[1757411582540,3.2327,4353.9,4353.8,3.002]
[1757411582688,3.2327,4353.9,4353.8,6.816]
[1757411586323,3.2327,4353.9,4353.8,9.11284413]
[1757411587224,3.2327,4353.9,4353.8,6.816]
[1757411587528,3.2327,4353.9,4353.8,3.814]
[1757411588827,2.29700241,4353.5,4353.4,0.002]
[1757411589031,0.21497173,4353.5,4353.4,0.002]
[1757411589219,3.1863,4353.5,4353.4,0.002]
[1757411589524,3.50493,4353.5,4353.4,0.002]
[1757411590342,3.59679142,4353.5,4353.4,0.002]
[1757411597156,7.41379142,4353.5,4353.4,0.002]
[1757411599050,3.59679142,4353.5,4353.4,0.002]
[1757411599664,3.59599142,4353.5,4353.4,0.002]
[1757411605317,7.41099142,4353.5,4353.4,0.002]
[1757411606032,7.41199142,4353.5,4353.4,0.002]
[1757411607544,0.09286142,4353.5,4353.4,0.002]
[1757411607830,3.816,4353.5,4353.4,0.3164]
[1757411608187,3.816,4353.5,4353.4,0.002]
[1757411609493,0.001,4353.5,4353.4,0.002]
[1757411610514,0.001,4353.5,4353.4,0.3164]
[1757411610822,0.001,4353.5,4353.4,3.05405517]
[1757411610994,0.001,4353.5,4353.4,2.61345517]
[1757411615271,0.001,4353.5,4353.4,5.47555517]
[1757411615460,0.001,4353.5,4353.4,8.00505517]
[1757411615611,0.001,4353.5,4353.4,8.47555517]
[1757411616028,0.001,4353.5,4353.4,8.58995517]
[1757411617912,0.001,4353.5,4353.4,6.19835517]
[1757411618314,0.001,4353.5,4353.4,5.72785517]
[1757411622075,0.001,4353.5,4353.4,5.61345517]
[1757411625874,0.0002,4353.5,4353.4,5.61345517]
[1757411630177,0.0002,4353.5,4353.4,5.29905517]
[1757411630178,0.3153,4353.5,4353.4,5.29905517]
[1757411631067,0.0002,4353.5,4353.4,5.29905517]
[1757411632372,0.747,4353.5,4353.4,5.29905517]
[1757411632570,3.0253,4353.5,4353.4,0.002]
[1757411632771,3.33527,4353.5,4353.4,3.816]
[1757411634359,3.0253,4353.5,4353.4,3.816]
[1757411639247,3.0253,4353.5,4353.4,6.816]
[1757411643783,0.0002,4353.5,4353.4,6.816]
[1757411644394,0.757,4353.5,4353.4,6.816]
[1757411644604,3.0917,4353.5,4353.4,6.816]
[1757411646002,0.0002,4353.5,4353.4,6.816]
[1757411646740,0.0002,4353.5,4353.4,9.41495517]
[1757411648349,0.0002,4353.5,4353.4,6.816]
[1757411649138,0.0002,4353.5,4353.4,7.1179]
[1757411650461,0.0002,4353.5,4353.4,9.41495517]
[1757411651940,0.1138,4353.7,4353.5,3.0]
[1757411652144,0.1138,4353.7,4353.6,6.814]
[1757411652569,0.1138,4353.7,4353.6,9.11094965]
[1757411652956,0.1138,4353.7,4353.6,6.814]
[1757411653955,0.1138,4353.7,4353.6,9.11094965]
[1757411654271,3.72491268,4353.7,4353.4,0.002]
[1757411654974,6.02181012,4353.7,4353.4,0.002]
[1757411655271,6.02182248,4353.7,4353.4,0.002]
[1757411655972,2.2969534,4353.6,4353.4,0.002]
[1757411656133,3.51776059,4353.6,4353.4,0.002]
[1757411656336,3.0915,4353.5,4353.4,0.002]
[1757411657272,5.38850241,4353.5,4353.4,0.002]
[1757411663156,9.20350241,4353.5,4353.4,0.002]
[1757411663987,0.3058,4353.5,4353.4,0.002]
[1757411664174,3.815,4353.5,4353.4,0.002]
[1757411665118,4.6339174,4353.5,4353.4,0.002]
[1757411666184,3.815,4353.5,4353.4,0.002]
[1757411666606,0.001,4353.5,4353.4,0.3039]
[1757411667192,0.001,4353.5,4353.4,2.60095517]
[1757411667392,0.001,4353.5,4353.4,0.3039]
[1757411667596,0.1154,4353.5,4353.4,0.3039]
[1757411668112,0.1154,4353.5,4353.4,2.60095517]
[1757411668828,0.1154,4353.5,4353.4,0.3039]
[1757411671901,2.9248,4353.5,4353.4,0.002]
[1757411672102,9.56541646,4353.5,4353.4,0.002]
[1757411678053,9.56461646,4353.5,4353.4,0.002]
[1757411681385,7.26761405,4353.5,4353.4,0.002]
[1757411681746,9.56461646,4353.5,4353.4,0.002]
[1757411692001,9.65650067,4353.5,4353.4,0.002]
[1757411692202,5.41070067,4353.5,4353.4,0.002]
[1757411692370,9.66150067,4353.5,4353.4,0.002]
[1757411693881,7.03280067,4353.5,4353.4,0.002]
[1757411695899,6.73770067,4353.5,4353.4,0.002]
[1757411696593,0.09208421,4353.5,4353.4,0.3089]
[1757411696795,3.8202,4353.5,4353.4,0.3089]
[1757411696999,0.0002,4353.5,4353.4,0.3089]
[1757411697194,3.8202,4353.5,4353.4,0.3089]
[1757411698603,0.0002,4353.5,4353.4,0.3089]
[1757411699108,0.0002,4353.5,4353.4,3.0901]
[1757411700072,0.0002,4353.5,4353.4,0.7765]
[1757411700278,0.0002,4353.5,4353.4,0.3089]
[1757411701509,0.0002,4353.5,4353.4,8.31985517]
[1757411704437,0.1138,4353.7,4353.5,3.0]
[1757411704751,0.1138,4353.7,4353.4,0.002]
[1757411704921,0.2956,4353.5,4353.4,0.002]
[1757411705751,0.7573,4353.5,4353.4,0.002]
[1757411706048,3.0983,4353.5,4353.4,0.002]
[1757411706713,0.7573,4353.5,4353.4,0.002]
[1757411707059,15.01395815,4353.8,4353.4,0.002]
[1757411707263,17.272504,4353.8,4353.4,0.002]
[1757411707560,5.09960021,4353.7,4353.4,0.002]
[1757411707708,2.8027,4353.7,4353.4,0.002]
[1757411707909,0.4617,4353.6,4353.4,0.002]
[1757411708870,2.8027,4353.6,4353.4,0.002]
[1757411709648,0.7573,4353.5,4353.4,0.002]
[1757411712027,3.0983,4353.5,4353.4,0.002]
[1757411712418,3.825,4353.7,4353.4,0.002]
[1757411712638,4.2867,4353.7,4353.4,0.002]
[1757411712855,3.825,4353.7,4353.4,0.002]
[1757411713017,0.2956,4353.5,4353.4,0.002]
[1757411713367,0.4617,4353.6,4353.4,0.002]
[1757411714561,12.17294585,4353.8,4353.6,3.0]
[1757411714562,9.9144,4353.8,4353.6,3.0]
[1757411714848,9.9144,4353.8,4353.7,0.288]
[1757411716418,9.9144,4353.8,4353.6,3.0]
[1757411716653,0.1144,4353.7,4353.6,3.0]
[1757411717067,0.1144,4353.7,4353.6,5.58494965]
[1757411717271,0.1144,4353.7,4353.6,3.288]
[1757411718672,0.1144,4353.7,4353.6,5.58494965]
[1757411718877,0.1144,4353.7,4353.6,3.288]
[1757411722558,0.1144,4353.7,4353.6,3.0]
[1757411722761,3.2127,4353.7,4353.6,3.0]
[1757411723065,5.48060797,4353.7,4353.6,3.822]
[1757411723224,5.48060797,4353.7,4353.4,0.002]
[1757411723424,0.1144,4353.5,4353.4,3.824]
[1757411723624,0.1144,4353.5,4353.4,3.002]
[1757411723924,3.2127,4353.5,4353.4,3.002]
[1757411724124,4.90761,4353.5,4353.4,3.002]
[1757411725757,3.2127,4353.5,4353.4,3.002]
[1757411725924,0.41,4353.5,4353.4,3.002]
[1757411728366,0.1144,4353.5,4353.4,3.002]
[1757411729068,12.2554,4353.8,4353.4,3.29]
[1757411729364,13.7364,4353.8,4353.4,3.29]
[1757411730146,14.1981,4353.8,4353.4,3.29]
[1757411730350,14.1973,4353.8,4353.4,3.29]
[1757411731033,2.341,4353.7,4353.5,3.822]
[1757411731242,2.8027,4353.7,4353.5,3.822]
[1757411731971,3.0707,4353.6,4353.5,6.822]
[1757411733967,0.001,4353.7,4353.5,3.0]
[1757411734273,2.7858,4353.7,4353.5,3.0]
[1757411737949,0.001,4353.7,4353.5,3.0]
[1757411738148,0.001,4353.7,4353.6,0.3125]
[1757411738338,0.001,4353.7,4353.6,0.7664]
[1757411738746,0.001,4353.7,4353.6,0.3125]
[1757411739965,0.001,4353.7,4353.6,4.1325]
[1757411743962,2.6194,4353.7,4353.5,3.0]
[1757411744161,3.0717,4353.7,4353.5,3.0]
[1757411744582,0.001,4353.7,4353.6,4.1315]
[1757411744952,0.001,4353.7,4353.6,9.42844965]
[1757411745859,0.001,4353.7,4353.6,12.03074965]
[1757411746054,0.001,4353.7,4353.6,5.6023]
[1757411746304,0.001,4353.7,4353.6,5.415]
[1757411746484,0.001,4353.7,4353.6,7.71194965]
[1757411746659,0.001,4353.7,4353.6,5.56354965]
[1757411747305,0.001,4353.7,4353.6,9.38254965]
[1757411749782,0.001,4353.7,4353.6,11.53094965]
[1757411750011,9.9136,4353.8,4353.7,5.29689689]
[1757411750012,8.16220048,4353.8,4353.7,5.29689689]
[1757411750211,8.16220048,4353.8,4353.7,17.01215889]
[1757411750510,7.94327554,4353.8,4353.7,19.59375889]
[1757411752099,7.94327554,4353.8,4353.7,19.42715889]
[1757411752485,7.94327554,4353.8,4353.7,20.11594397]
[1757411754014,7.94327554,4353.8,4353.7,8.51508197]
[1757411754320,7.94327554,4353.8,4353.7,19.42715889]
[1757411755021,7.94327554,4353.8,4353.7,7.82629689]
[1757411755248,7.94327554,4353.8,4353.7,19.42715889]
[1757411756500,7.94247554,4353.8,4353.7,19.42715889]
[1757411756703,7.94247554,4353.8,4353.7,17.27875889]
[1757411758050,7.94247554,4353.8,4353.7,5.67789689]
[1757411758343,7.94247554,4353.8,4353.7,17.27875889]
[1757411759654,7.94247554,4353.8,4353.7,20.21915889]
[1757411759812,7.94247554,4353.8,4353.7,21.07446491]
[1757411762729,7.94247554,4353.8,4353.7,20.90786491]
[1757411763342,7.94247554,4353.8,4353.7,18.75946491]
[1757411764152,7.94247554,4353.8,4353.7,7.15860291]
[1757411764356,7.94247554,4353.8,4353.7,18.75946491]
[1757411767359,7.94247554,4353.8,4353.7,7.15860291]
[1757411767560,7.94247554,4353.8,4353.7,18.75946491]
[1757411770476,7.94247554,4353.8,4353.7,9.23760291]
[1757411770779,7.94247554,4353.8,4353.7,24.65246491]
[1757411771177,7.94247554,4353.8,4353.7,22.57346491]
[1757411772286,7.94347554,4353.8,4353.7,22.57346491]
[1757411772573,7.94347554,4353.8,4353.7,10.97260291]
[1757411772747,7.94347554,4353.8,4353.7,22.57346491]
[1757411776470,7.94347554,4353.8,4353.7,24.22226496]
[1757411776644,7.94347554,4353.8,4353.7,12.62140296]
[1757411776841,7.94347554,4353.8,4353.7,24.22226496]
[1757411777046,1.87753282,4353.8,4353.7,26.46786496]
[1757411777263,1.87753282,4353.8,4353.7,26.30126496]
[1757411777482,1.87753282,4353.8,4353.7,24.65246491]
[1757411777694,1.87753282,4353.8,4353.7,10.97260291]
[1757411777898,1.87753282,4353.8,4353.7,22.57346491]
[1757411778568,1e-08,4353.8,4353.7,22.57346491]
[1757411782673,38.13020001,4353.9,4353.8,3.08884413]
[1757411782881,38.13020001,4353.9,4353.8,6.08884413]
[1757411783187,38.13020001,4353.9,4353.8,17.95630613]
[1757411785005,38.13020001,4353.9,4353.8,6.35544413]
[1757411785163,38.13020001,4353.9,4353.8,17.95630613]
[1757411785988,38.13020001,4353.9,4353.8,6.35544413]
[1757411786306,38.13020001,4353.9,4353.8,17.95630613]
[1757411787102,38.13020001,4353.9,4353.8,6.35544413]
[1757411787303,38.13020001,4353.9,4353.8,17.95630613]
[1757411788169,2.92441839,4354.0,4353.9,17.68965338]
[1757411788369,2.92441839,4354.0,4353.9,23.84925338]
[1757411788574,0.86147956,4354.0,4353.9,25.91025344]
[1757411788774,0.001,4354.1,4354.0,6.08873863]
[1757411788975,0.001,4354.1,4354.0,21.82960069]
[1757411789184,0.001,4354.1,4354.0,22.09620069]
[1757411789385,0.001,4354.4,4354.2,0.792]
[1757411789584,0.001,4354.4,4354.3,23.26544239]
[1757411789806,0.001,4354.4,4354.3,23.53204239]
[1757411791499,0.001,4354.4,4354.3,25.62604239]
[1757411791695,0.001,4354.4,4354.3,23.53204239]
[1757411795317,0.7242,4354.4,4354.3,7.85058039]
[1757411795625,2.8495,4354.4,4354.3,11.66358039]
[1757411797901,0.7242,4354.4,4354.3,23.26444239]
[1757411798097,0.2868,4354.4,4354.3,23.26444239]
[1757411798309,0.001,4354.4,4354.3,25.29069623]
[1757411798818,0.001,4354.4,4354.3,25.02409623]
[1757411799026,0.4384,4354.4,4354.3,25.02409623]
[1757411799191,0.001,4354.4,4354.3,25.29069623]
[1757411799925,0.001,4354.4,4354.3,23.64544239]
[1757411803027,0.001,4354.4,4354.3,12.04458039]
[1757411803339,0.001,4354.4,4354.3,23.37884239]
[1757411803950,0.001,4354.4,4354.3,11.77798039]
[1757411804143,0.001,4354.4,4354.3,23.37884239]
[1757411805047,0.001,4354.4,4354.3,11.77798039]
[1757411805207,0.001,4354.4,4354.3,23.37884239]
[1757411806453,0.001,4354.4,4354.3,23.64544239]
[1757411808988,0.0002,4354.4,4354.3,23.64544239]
[1757411809783,0.286,4354.4,4354.3,23.37884239]
[1757411809968,2.8487,4354.4,4354.3,25.07184239]
[1757411810167,2.8487,4354.4,4354.3,28.88484239]
[1757411810344,2.8487,4354.4,4354.3,30.52940339]
[1757411811149,2.8487,4354.4,4354.3,18.92854139]
[1757411811383,2.8487,4354.4,4354.3,30.52940339]
[1757411814272,2.8487,4354.4,4354.3,28.88484239]
[1757411814649,2.8487,4354.4,4354.3,25.07184239]
[1757411814851,2.8487,4354.4,4354.3,30.5303262]
[1757411816188,2.8487,4354.4,4354.3,28.88484239]
[1757411817016,0.0002,4354.4,4354.3,28.88484239]
[1757411817224,0.7234,4354.4,4354.3,28.88484239]
[1757411818105,0.4376,4354.4,4354.3,28.88484239]
[1757411819382,0.7234,4354.4,4354.3,28.88484239]